[Event "*** Titled Tuesday Blitz"]
[Site "Chess.com"]
[Date "2019.07.02"]
[Round "3"]
[White "Colombiano07"]
[Black "ahkashefi2800"]
[Result "1-0"]
[WhiteElo "2166"]
[BlackElo "2050"]
[TimeControl "180+2"]
[EndTime "13:39:41 PDT"]
[Termination "Colombiano07 won on time"]

1. e4 {[%clk 0:03:01.9]} 1... c6 {[%clk 0:02:56]} 2. d4 {[%clk 0:03:01.2]} 2...
d5 {[%clk 0:02:57]} 3. f3 {[%clk 0:03:02.9]} 3... g6 {[%clk 0:02:55.2]} 4. Nc3
{[%clk 0:03:03.2]} 4... h5 {[%clk 0:02:44.7]} 5. Be3 {[%clk 0:03:04.3]} 5... Bh6
{[%clk 0:02:42]} 6. Qd2 {[%clk 0:03:02.2]} 6... Bxe3 {[%clk 0:02:39.4]} 7. Qxe3
{[%clk 0:03:04.1]} 7... e6 {[%clk 0:02:39.9]} 8. Bd3 {[%clk 0:03:01.1]} 8... Ne7
{[%clk 0:02:32]} 9. Nh3 {[%clk 0:02:57.6]} 9... Nd7 {[%clk 0:02:15.1]} 10. O-O-O
{[%clk 0:02:56.6]} 10... Nf6 {[%clk 0:02:02.4]} 11. Ng5 {[%clk 0:02:53.2]} 11...
Qc7 {[%clk 0:01:57.5]} 12. g3 {[%clk 0:02:42.3]} 12... Bd7 {[%clk 0:01:54.9]}
13. Kb1 {[%clk 0:02:42.4]} 13... Nh7 {[%clk 0:01:53.8]} 14. Rhe1 {[%clk
0:02:37.9]} 14... Nxg5 {[%clk 0:01:50.9]} 15. Qxg5 {[%clk 0:02:39.8]} 15... Rf8
{[%clk 0:01:42.9]} 16. exd5 {[%clk 0:02:38.5]} 16... cxd5 {[%clk 0:01:40.2]} 17.
Nxd5 {[%clk 0:02:32]} 17... Nxd5 {[%clk 0:01:40.6]} 18. Qxd5 {[%clk 0:02:32.6]}
18... O-O-O {[%clk 0:01:26.4]} 19. Qe5 {[%clk 0:02:30.2]} 19... Bc6 {[%clk
0:01:25.3]} 20. f4 {[%clk 0:02:28.6]} 20... h4 {[%clk 0:01:18.5]} 21. Be4 {[%clk
0:02:17.4]} 21... hxg3 {[%clk 0:01:14.9]} 22. hxg3 {[%clk 0:02:16.3]} 22... Qxe5
{[%clk 0:01:09.1]} 23. fxe5 {[%clk 0:02:10.3]} 23... Rh8 {[%clk 0:00:34]} 24.
Bxc6 {[%clk 0:01:48.4]} 24... bxc6 {[%clk 0:00:24.7]} 25. Rf1 {[%clk 0:01:49.4]}
25... Rd7 {[%clk 0:00:22.8]} 26. Rf3 {[%clk 0:01:46.1]} 26... Rh5 {[%clk
0:00:22.7]} 27. Kc1 {[%clk 0:01:41.7]} 27... Kd8 {[%clk 0:00:19.3]} 28. c3
{[%clk 0:01:41.1]} 28... Ke8 {[%clk 0:00:18.6]} 29. Kc2 {[%clk 0:01:38.6]} 29...
c5 {[%clk 0:00:11.4]} 30. Rd2 {[%clk 0:01:16.3]} 30... cxd4 {[%clk 0:00:10.1]}
31. cxd4 {[%clk 0:01:18.2]} 31... Rg5 {[%clk 0:00:04.2]} 32. b4 {[%clk
0:01:17.3]} 32... Rg4 {[%clk 0:00:05]} 33. Rfd3 {[%clk 0:01:16.3]} 33... Rc7+
{[%clk 0:00:05.7]} 34. Kb3 {[%clk 0:01:17.4]} 34... Rd7 {[%clk 0:00:06]} 35. b5
{[%clk 0:01:17.4]} 35... Re4 {[%clk 0:00:06.6]} 36. a4 {[%clk 0:01:17.8]} 36...
Kd8 {[%clk 0:00:01.5]} 37. Kb4 {[%clk 0:01:05]} 1-0

[Event "*** Titled Tuesday Blitz"]
[Site "Chess.com"]
[Date "2019.07.02"]
[Round "3"]
[White "MikeSailer"]
[Black "Synctel"]
[Result "1-0"]
[WhiteElo "2068"]
[BlackElo "1989"]
[TimeControl "180+2"]
[EndTime "13:39:43 PDT"]
[Termination "MikeSailer won on time"]

1. b4 {[%clk 0:03:01.8]} 1... d5 {[%clk 0:02:55.4]} 2. Nf3 {[%clk 0:03:01.6]}
2... Nf6 {[%clk 0:02:55.8]} 3. e3 {[%clk 0:02:59.8]} 3... e6 {[%clk 0:02:49.4]}
4. b5 {[%clk 0:03:00.7]} 4... Bd6 {[%clk 0:02:48.5]} 5. c4 {[%clk 0:02:59.8]}
5... c6 {[%clk 0:02:48.5]} 6. a4 {[%clk 0:03:01]} 6... O-O {[%clk 0:02:39.2]} 7.
Bb2 {[%clk 0:03:02.2]} 7... Nbd7 {[%clk 0:01:58.8]} 8. d4 {[%clk 0:03:02.3]}
8... Re8 {[%clk 0:01:54.7]} 9. Be2 {[%clk 0:03:01.4]} 9... e5 {[%clk 0:01:43.4]}
10. dxe5 {[%clk 0:03:00.2]} 10... Nxe5 {[%clk 0:01:44.6]} 11. Nxe5 {[%clk
0:02:59.4]} 11... Bxe5 {[%clk 0:01:46.5]} 12. Bxe5 {[%clk 0:02:59.4]} 12... Rxe5
{[%clk 0:01:45.8]} 13. bxc6 {[%clk 0:03:00.6]} 13... bxc6 {[%clk 0:01:46.6]} 14.
O-O {[%clk 0:03:00.8]} 14... Be6 {[%clk 0:01:21.5]} 15. Nd2 {[%clk 0:02:59.7]}
15... Ne4 {[%clk 0:00:46]} 16. Nxe4 {[%clk 0:02:47]} 16... dxe4 {[%clk
0:00:36.3]} 17. Qc2 {[%clk 0:02:20.4]} 17... f5 {[%clk 0:00:32.6]} 18. Rad1
{[%clk 0:02:04.1]} 18... Qc7 {[%clk 0:00:25.4]} 19. c5 {[%clk 0:01:35.3]} 19...
Qa5 {[%clk 0:00:18]} 20. Rd6 {[%clk 0:00:59.8]} 20... Bd5 {[%clk 0:00:16]} 21.
Qb2 {[%clk 0:00:47.7]} 21... Re7 {[%clk 0:00:16.2]} 22. Rc1 {[%clk 0:00:39.9]}
22... Rae8 {[%clk 0:00:08.4]} 23. g3 {[%clk 0:00:32.1]} 23... Qc7 {[%clk
0:00:07.3]} 24. Bc4 {[%clk 0:00:29.6]} 24... Rd7 {[%clk 0:00:05.6]} 25. Bxd5+
{[%clk 0:00:28.8]} 25... cxd5 {[%clk 0:00:07.5]} 26. Rxd7 {[%clk 0:00:26.9]}
26... Qxd7 {[%clk 0:00:08.8]} 27. c6 {[%clk 0:00:27.9]} 27... Qc7 {[%clk
0:00:08.4]} 28. Qb5 {[%clk 0:00:15.9]} 28... Rd8 {[%clk 0:00:08.7]} 29. Rc5
{[%clk 0:00:12.5]} 29... d4 {[%clk 0:00:07.7]} 30. Qc4+ {[%clk 0:00:08.6]} 30...
Kf8 {[%clk 0:00:07.1]} 31. exd4 {[%clk 0:00:10.3]} 1-0

[Event "*** Titled Tuesday Blitz"]
[Site "Chess.com"]
[Date "2019.07.02"]
[Round "3"]
[White "Manukyan_Artak"]
[Black "fidezivkovic"]
[Result "0-1"]
[WhiteElo "2332"]
[BlackElo "2256"]
[TimeControl "180+2"]
[EndTime "13:39:45 PDT"]
[Termination "fidezivkovic won by resignation"]

1. e4 {[%clk 0:03:01.9]} 1... c5 {[%clk 0:03:00]} 2. Nf3 {[%clk 0:03:02.3]} 2...
g6 {[%clk 0:03:00]} 3. c3 {[%clk 0:03:03.1]} 3... Bg7 {[%clk 0:02:58.8]} 4. d4
{[%clk 0:02:59.7]} 4... cxd4 {[%clk 0:02:58.7]} 5. cxd4 {[%clk 0:03:01.6]} 5...
d5 {[%clk 0:02:58.9]} 6. exd5 {[%clk 0:03:02.1]} 6... Nf6 {[%clk 0:02:58.6]} 7.
Bb5+ {[%clk 0:03:02]} 7... Nbd7 {[%clk 0:02:58.1]} 8. Nc3 {[%clk 0:03:02.4]}
8... O-O {[%clk 0:02:55.8]} 9. Bxd7 {[%clk 0:03:03.4]} 9... Bxd7 {[%clk
0:02:42.8]} 10. Qb3 {[%clk 0:03:03.7]} 10... b5 {[%clk 0:02:35.5]} 11. O-O
{[%clk 0:02:56.4]} 11... a5 {[%clk 0:02:31.9]} 12. a4 {[%clk 0:02:55.4]} 12...
b4 {[%clk 0:02:31.1]} 13. Nb5 {[%clk 0:02:56.5]} 13... Bxb5 {[%clk 0:02:18.7]}
14. axb5 {[%clk 0:02:57.1]} 14... Nxd5 {[%clk 0:02:17.7]} 15. Bg5 {[%clk
0:02:56.2]} 15... Qd7 {[%clk 0:02:02.8]} 16. Ne5 {[%clk 0:02:54.3]} 16... Qxb5
{[%clk 0:01:58.8]} 17. Rac1 {[%clk 0:02:44.5]} 17... Rfc8 {[%clk 0:01:52.1]} 18.
Rxc8+ {[%clk 0:02:16.5]} 18... Rxc8 {[%clk 0:01:51.8]} 19. Bxe7 {[%clk 0:02:15]}
19... Bxe5 {[%clk 0:01:48.5]} 20. dxe5 {[%clk 0:02:15.5]} 20... Nxe7 {[%clk
0:01:48.4]} 21. e6 {[%clk 0:02:16.9]} 21... Qc4 {[%clk 0:01:38.7]} 22. exf7+
{[%clk 0:02:16.3]} 22... Kxf7 {[%clk 0:01:32]} 23. Qh3 {[%clk 0:02:15.5]} 23...
h5 {[%clk 0:01:20.4]} 24. Qf3+ {[%clk 0:02:13.6]} 24... Kg7 {[%clk 0:01:15.1]}
25. Qb7 {[%clk 0:02:13]} 25... Rc7 {[%clk 0:01:14.1]} 26. Qb6 {[%clk 0:02:14]}
26... Nd5 {[%clk 0:01:06.6]} 27. Qxa5 {[%clk 0:02:12]} 27... Nf4 {[%clk
0:01:00.9]} 28. Qe5+ {[%clk 0:02:09.7]} 28... Kh7 {[%clk 0:00:59.1]} 29. g3
{[%clk 0:02:04.9]} 29... Nd3 {[%clk 0:00:41]} 30. Qd6 {[%clk 0:01:52]} 30...
Nxb2 {[%clk 0:00:32.6]} 31. Re1 {[%clk 0:01:52.9]} 31... Rf7 {[%clk 0:00:23]}
32. Re7 {[%clk 0:01:50.7]} 32... b3 {[%clk 0:00:20.8]} 33. Rxf7+ {[%clk
0:01:49]} 33... Qxf7 {[%clk 0:00:20.5]} 34. g4 {[%clk 0:01:36]} 34... hxg4
{[%clk 0:00:19.7]} 35. Qg3 {[%clk 0:01:36.4]} 35... Nd1 {[%clk 0:00:16.3]} 36.
f4 {[%clk 0:01:24.6]} 36... b2 {[%clk 0:00:11.1]} 37. f5 {[%clk 0:01:17.9]}
37... Qxf5 {[%clk 0:00:09.4]} 38. Qh4+ {[%clk 0:01:15.2]} 38... Kg7 {[%clk
0:00:07.8]} 39. Qe7+ {[%clk 0:01:15.8]} 39... Qf7 {[%clk 0:00:07.9]} 40. Qe5+
{[%clk 0:01:16.6]} 40... Qf6 {[%clk 0:00:08.2]} 41. Qc7+ {[%clk 0:01:17.2]}
41... Kh6 {[%clk 0:00:07.9]} 42. Qg3 {[%clk 0:01:14.8]} 42... b1=Q {[%clk
0:00:06.5]} 43. Qxg4 {[%clk 0:01:15.5]} 43... Ne3+ {[%clk 0:00:06.5]} 0-1

[Event "*** Titled Tuesday Blitz"]
[Site "Chess.com"]
[Date "2019.07.02"]
[Round "3"]
[White "Gr3egor"]
[Black "shnitez"]
[Result "0-1"]
[WhiteElo "2604"]
[BlackElo "2567"]
[TimeControl "180+2"]
[EndTime "13:39:47 PDT"]
[Termination "shnitez won by resignation"]

1. d4 {[%clk 0:03:01.9]} 1... Nf6 {[%clk 0:03:00]} 2. c4 {[%clk 0:03:02.6]} 2...
e6 {[%clk 0:03:00.1]} 3. Nf3 {[%clk 0:03:03.2]} 3... b6 {[%clk 0:03:00.9]} 4. g3
{[%clk 0:03:03.2]} 4... Bb7 {[%clk 0:03:01.9]} 5. Bg2 {[%clk 0:03:03.7]} 5...
Be7 {[%clk 0:03:03.3]} 6. O-O {[%clk 0:03:03.5]} 6... O-O {[%clk 0:03:04.3]} 7.
Nc3 {[%clk 0:03:02.9]} 7... Ne4 {[%clk 0:03:05.3]} 8. Qc2 {[%clk 0:02:54.3]}
8... Nxc3 {[%clk 0:03:04.2]} 9. Ng5 {[%clk 0:02:54.6]} 9... Nxe2+ {[%clk
0:03:03.7]} 10. Qxe2 {[%clk 0:02:22.9]} 10... Bxg2 {[%clk 0:03:05.6]} 11. Kxg2
{[%clk 0:01:59.5]} 11... Bxg5 {[%clk 0:03:05.4]} 12. Qf3 {[%clk 0:01:58.6]}
12... Nc6 {[%clk 0:02:58.5]} 13. d5 {[%clk 0:01:58.1]} 13... Bxc1 {[%clk
0:02:38.4]} 14. dxc6 {[%clk 0:01:58.9]} 14... Bxb2 {[%clk 0:02:37.6]} 15. Rad1
{[%clk 0:01:52.9]} 15... d6 {[%clk 0:02:38.2]} 16. h4 {[%clk 0:01:51.5]} 16...
Qf6 {[%clk 0:02:36.2]} 17. Qb3 {[%clk 0:01:48.1]} 17... Bd4 {[%clk 0:02:34.1]}
18. h5 {[%clk 0:01:41.6]} 18... Bc5 {[%clk 0:02:31.5]} 19. f4 {[%clk 0:01:37.2]}
19... e5 {[%clk 0:02:15.5]} 20. Qd3 {[%clk 0:01:29.3]} 20... Rae8 {[%clk
0:02:10.5]} 21. h6 {[%clk 0:01:21]} 21... e4 {[%clk 0:02:02.2]} 22. Qe2 {[%clk
0:01:10.7]} 22... Qxh6 {[%clk 0:02:02.1]} 23. Rd5 {[%clk 0:01:11.4]} 23... f5
{[%clk 0:02:00.1]} 24. Rh1 {[%clk 0:01:11.3]} 24... Qg6 {[%clk 0:01:59]} 25. Rh4
{[%clk 0:01:12.5]} 25... Re6 {[%clk 0:01:54.3]} 26. g4 {[%clk 0:01:08.3]} 26...
fxg4 {[%clk 0:01:48.3]} 27. Rxg4 {[%clk 0:01:10.2]} 27... Qf7 {[%clk 0:01:44.9]}
28. Rdg5 {[%clk 0:01:06.9]} 28... Rg6 {[%clk 0:01:21.9]} 29. Rxg6 {[%clk
0:00:45.5]} 29... hxg6 {[%clk 0:01:23.8]} 30. Qxe4 {[%clk 0:00:47.2]} 30... Qf5
{[%clk 0:01:18.9]} 31. Qe2 {[%clk 0:00:48.4]} 31... Kf7 {[%clk 0:01:08.6]} 32.
Rg5 {[%clk 0:00:37.9]} 32... Qxf4 {[%clk 0:01:02]} 33. Rg4 {[%clk 0:00:21.6]}
33... Qf5 {[%clk 0:00:57.4]} 34. Re4 {[%clk 0:00:20.4]} 34... Kg8 {[%clk
0:00:55.5]} 35. Re7 {[%clk 0:00:20.2]} 35... Qg5+ {[%clk 0:00:30.8]} 36. Kh3
{[%clk 0:00:15]} 36... Rf4 {[%clk 0:00:23.3]} 0-1

[Event "*** Titled Tuesday Blitz"]
[Site "Chess.com"]
[Date "2019.07.02"]
[Round "3"]
[White "Yurovskykh_Oleksandr"]
[Black "ChessWeebs"]
[Result "0-1"]
[WhiteElo "2529"]
[BlackElo "2784"]
[TimeControl "180+2"]
[EndTime "13:39:52 PDT"]
[Termination "ChessWeebs won by resignation"]

1. d4 {[%clk 0:03:01.9]} 1... d5 {[%clk 0:03:00.3]} 2. Bf4 {[%clk 0:03:01.1]}
2... Nf6 {[%clk 0:02:59.9]} 3. e3 {[%clk 0:03:01.9]} 3... c5 {[%clk 0:03:00.9]}
4. c3 {[%clk 0:03:03]} 4... e6 {[%clk 0:03:02]} 5. Nd2 {[%clk 0:03:04]} 5... Nc6
{[%clk 0:03:03.4]} 6. Ngf3 {[%clk 0:03:04.8]} 6... Be7 {[%clk 0:03:04.7]} 7. Ne5
{[%clk 0:03:03.5]} 7... Nd7 {[%clk 0:03:05.5]} 8. Nxd7 {[%clk 0:02:31.9]} 8...
Bxd7 {[%clk 0:03:07.4]} 9. Bd3 {[%clk 0:02:32.6]} 9... O-O {[%clk 0:03:08.2]}
10. O-O {[%clk 0:02:33]} 10... c4 {[%clk 0:02:52.2]} 11. Bc2 {[%clk 0:02:33.1]}
11... f5 {[%clk 0:02:53.9]} 12. Nf3 {[%clk 0:02:31.6]} 12... b5 {[%clk
0:02:55.3]} 13. Ne5 {[%clk 0:02:32.4]} 13... Nxe5 {[%clk 0:02:56.9]} 14. Bxe5
{[%clk 0:02:34.3]} 14... a5 {[%clk 0:02:55]} 15. f3 {[%clk 0:02:26.3]} 15... b4
{[%clk 0:02:35.9]} 16. e4 {[%clk 0:02:25.1]} 16... a4 {[%clk 0:02:34.5]} 17. Qd2
{[%clk 0:02:14.8]} 17... a3 {[%clk 0:02:17.1]} 18. b3 {[%clk 0:02:08.7]} 18...
Qa5 {[%clk 0:02:07.6]} 19. bxc4 {[%clk 0:02:02.9]} 19... bxc3 {[%clk 0:02:07.7]}
20. Qe2 {[%clk 0:02:02]} 20... dxc4 {[%clk 0:02:06.8]} 21. exf5 {[%clk
0:01:57.9]} 21... exf5 {[%clk 0:01:54]} 22. Bxg7 {[%clk 0:01:57.8]} 22... Kxg7
{[%clk 0:01:54.5]} 23. Qxe7+ {[%clk 0:01:58.1]} 23... Rf7 {[%clk 0:01:56.2]} 24.
Qg5+ {[%clk 0:01:37.7]} 24... Kh8 {[%clk 0:01:57]} 25. Rab1 {[%clk 0:01:38.2]}
25... Ba4 {[%clk 0:01:46.7]} 26. Rfc1 {[%clk 0:01:18.9]} 26... Bxc2 {[%clk
0:01:37.2]} 27. Rxc2 {[%clk 0:01:20.8]} 27... Re8 {[%clk 0:01:38.4]} 28. Rbc1
{[%clk 0:01:16.4]} 28... Qb6 {[%clk 0:01:30.1]} 29. Qf4 {[%clk 0:01:10.1]} 29...
Rd7 {[%clk 0:01:31]} 30. Rd1 {[%clk 0:00:50.8]} 30... Red8 {[%clk 0:01:21.6]}
31. Qe5+ {[%clk 0:00:48.2]} 31... Kg8 {[%clk 0:01:22.6]} 32. Rxc3 {[%clk
0:00:21.2]} 32... Rxd4 {[%clk 0:01:21.8]} 33. Rxd4 {[%clk 0:00:22.7]} 33... Rxd4
{[%clk 0:01:23]} 34. Qe3 {[%clk 0:00:18.1]} 34... Rd1+ {[%clk 0:01:13.4]} 35.
Kf2 {[%clk 0:00:19.2]} 35... Rd2+ {[%clk 0:01:15]} 36. Kg3 {[%clk 0:00:20.7]}
36... Qg6+ {[%clk 0:00:51.6]} 37. Kf4 {[%clk 0:00:13.7]} 37... Qd6+ {[%clk
0:00:48.3]} 38. Kxf5 {[%clk 0:00:04]} 38... Rd5+ {[%clk 0:00:48.3]} 39. Kg4
{[%clk 0:00:04.8]} 39... Qg6+ {[%clk 0:00:48.2]} 40. Kf4 {[%clk 0:00:06.1]}
40... Qg5+ {[%clk 0:00:36.5]} 0-1

[Event "*** Titled Tuesday Blitz"]
[Site "Chess.com"]
[Date "2019.07.02"]
[Round "3"]
[White "Alex_Molchanov"]
[Black "jk13"]
[Result "1-0"]
[WhiteElo "2574"]
[BlackElo "2592"]
[TimeControl "180+2"]
[EndTime "13:39:52 PDT"]
[Termination "Alex_Molchanov won by resignation"]

1. Nf3 {[%clk 0:03:01.9]} 1... Nf6 {[%clk 0:03:00.6]} 2. c4 {[%clk 0:03:02.3]}
2... e6 {[%clk 0:03:02.1]} 3. g3 {[%clk 0:03:03]} 3... d5 {[%clk 0:03:03.1]} 4.
Bg2 {[%clk 0:03:04.5]} 4... dxc4 {[%clk 0:03:04.4]} 5. Qa4+ {[%clk 0:03:05.3]}
5... c6 {[%clk 0:03:05.6]} 6. Qxc4 {[%clk 0:03:06.3]} 6... b5 {[%clk 0:03:07.2]}
7. Qc2 {[%clk 0:03:07.7]} 7... Bb7 {[%clk 0:03:08.8]} 8. a4 {[%clk 0:03:08.6]}
8... a6 {[%clk 0:03:10.2]} 9. O-O {[%clk 0:03:08.5]} 9... Nbd7 {[%clk
0:03:11.8]} 10. Nc3 {[%clk 0:03:08.2]} 10... Be7 {[%clk 0:03:11.9]} 11. d3
{[%clk 0:02:44.6]} 11... O-O {[%clk 0:03:12.1]} 12. e4 {[%clk 0:02:42.3]} 12...
Rc8 {[%clk 0:03:12.5]} 13. h3 {[%clk 0:02:40.2]} 13... Qb6 {[%clk 0:03:11]} 14.
Be3 {[%clk 0:02:40.5]} 14... c5 {[%clk 0:03:09]} 15. axb5 {[%clk 0:02:34.9]}
15... axb5 {[%clk 0:03:09.9]} 16. Rfc1 {[%clk 0:02:35.3]} 16... Bc6 {[%clk
0:03:09.1]} 17. b4 {[%clk 0:02:34.6]} 17... Qb7 {[%clk 0:03:09.1]} 18. bxc5
{[%clk 0:02:32.9]} 18... Nxc5 {[%clk 0:03:03.5]} 19. Rab1 {[%clk 0:02:27.5]}
19... Qa6 {[%clk 0:02:14.3]} 20. Ne2 {[%clk 0:02:21.3]} 20... Na4 {[%clk
0:02:00.9]} 21. Qb3 {[%clk 0:02:18.5]} 21... Rfd8 {[%clk 0:01:45.1]} 22. Nfd4
{[%clk 0:02:16.7]} 22... Nc5 {[%clk 0:01:13.1]} 23. Qd1 {[%clk 0:02:16.1]} 23...
Be8 {[%clk 0:01:09.7]} 24. Ra1 {[%clk 0:01:56.9]} 24... Qb7 {[%clk 0:01:06.3]}
25. Rcb1 {[%clk 0:01:53.5]} 25... e5 {[%clk 0:00:59.4]} 26. Nf5 {[%clk
0:01:54.4]} 26... Nxd3 {[%clk 0:00:57.6]} 27. Qf1 {[%clk 0:01:43.6]} 27... Bc5
{[%clk 0:00:35.6]} 28. g4 {[%clk 0:01:44.5]} 28... Bxe3 {[%clk 0:00:32.9]} 29.
Nxe3 {[%clk 0:01:46.4]} 29... g6 {[%clk 0:00:20.1]} 30. Nd5 {[%clk 0:01:44.4]}
30... Nxd5 {[%clk 0:00:20.5]} 31. exd5 {[%clk 0:01:46.3]} 31... Qe7 {[%clk
0:00:20.2]} 32. Rb3 {[%clk 0:01:36]} 32... e4 {[%clk 0:00:18.7]} 33. Ng3 {[%clk
0:01:34.2]} 33... Nc5 {[%clk 0:00:18.8]} 34. Re3 {[%clk 0:01:34.7]} 34... Rxd5
{[%clk 0:00:20.1]} 35. Nxe4 {[%clk 0:01:34.8]} 35... Nxe4 {[%clk 0:00:20.6]} 36.
Bxe4 {[%clk 0:01:35.6]} 36... Re5 {[%clk 0:00:22]} 37. Rae1 {[%clk 0:01:36.6]}
37... Rd8 {[%clk 0:00:18.1]} 38. f4 {[%clk 0:01:32.9]} 38... Re6 {[%clk
0:00:16.7]} 39. f5 {[%clk 0:01:34.3]} 39... Re5 {[%clk 0:00:16.9]} 40. Qf4
{[%clk 0:01:31.9]} 40... Qc5 {[%clk 0:00:17.7]} 41. fxg6 {[%clk 0:01:22.7]}
41... hxg6 {[%clk 0:00:18.6]} 42. h4 {[%clk 0:01:09.6]} 42... Rd4 {[%clk
0:00:19.9]} 43. Qf2 {[%clk 0:01:07.6]} 43... b4 {[%clk 0:00:17.5]} 44. Bxg6
{[%clk 0:01:04.6]} 44... Rxg4+ {[%clk 0:00:18.1]} 45. Kh2 {[%clk 0:00:56.8]}
45... Rxe3 {[%clk 0:00:18.9]} 46. Rxe3 {[%clk 0:00:58.7]} 46... Qd6+ {[%clk
0:00:19.2]} 47. Kh3 {[%clk 0:00:58.4]} 47... Bd7 {[%clk 0:00:19.5]} 48. Bf5
{[%clk 0:00:59]} 48... Bxf5 {[%clk 0:00:19.6]} 49. Qxf5 {[%clk 0:01:00.6]} 49...
Qg6 {[%clk 0:00:21.3]} 50. Qxg4 {[%clk 0:01:01.2]} 50... Qxg4+ {[%clk
0:00:21.8]} 51. Kxg4 {[%clk 0:01:03.1]} 1-0

[Event "*** Titled Tuesday Blitz"]
[Site "Chess.com"]
[Date "2019.07.02"]
[Round "3"]
[White "Infernal_XaM"]
[Black "GrigorGrigorov"]
[Result "1-0"]
[WhiteElo "2885"]
[BlackElo "2770"]
[TimeControl "180+2"]
[EndTime "13:39:54 PDT"]
[Termination "Infernal_XaM won by resignation"]

1. c4 {[%clk 0:03:01.9]} 1... Nf6 {[%clk 0:02:59.5]} 2. Nc3 {[%clk 0:03:02.9]}
2... e6 {[%clk 0:03:00.1]} 3. e4 {[%clk 0:03:03.2]} 3... d5 {[%clk 0:03:01.1]}
4. cxd5 {[%clk 0:03:04.2]} 4... exd5 {[%clk 0:03:03]} 5. e5 {[%clk 0:03:04.7]}
5... Ne4 {[%clk 0:03:01.3]} 6. d3 {[%clk 0:03:04.7]} 6... Nxc3 {[%clk 0:02:59]}
7. bxc3 {[%clk 0:03:05.6]} 7... Be7 {[%clk 0:02:56.5]} 8. Nf3 {[%clk 0:03:06.3]}
8... O-O {[%clk 0:02:57]} 9. d4 {[%clk 0:03:07.3]} 9... c5 {[%clk 0:02:51]} 10.
Bd3 {[%clk 0:03:07.3]} 10... Nc6 {[%clk 0:02:49.4]} 11. h3 {[%clk 0:03:06.3]}
11... Be6 {[%clk 0:02:35.2]} 12. O-O {[%clk 0:03:06.5]} 12... Rc8 {[%clk
0:02:34.7]} 13. a3 {[%clk 0:03:05.1]} 13... Qd7 {[%clk 0:02:20.8]} 14. Be3
{[%clk 0:02:58.9]} 14... c4 {[%clk 0:02:19.2]} 15. Bc2 {[%clk 0:02:58.9]} 15...
Bf5 {[%clk 0:02:19.6]} 16. Nd2 {[%clk 0:02:58.9]} 16... Bxc2 {[%clk 0:02:17.6]}
17. Qxc2 {[%clk 0:02:59.8]} 17... Nd8 {[%clk 0:02:15.7]} 18. f4 {[%clk
0:02:57.4]} 18... f5 {[%clk 0:02:16.8]} 19. exf6 {[%clk 0:02:58.4]} 19... Bxf6
{[%clk 0:02:15.1]} 20. Nf3 {[%clk 0:02:59.4]} 20... Nf7 {[%clk 0:01:49.3]} 21.
Ne5 {[%clk 0:02:59.5]} 21... Qe8 {[%clk 0:01:44.5]} 22. Rae1 {[%clk 0:02:55.7]}
22... Nd6 {[%clk 0:01:43.3]} 23. f5 {[%clk 0:02:56.7]} 23... Ne4 {[%clk
0:01:36.9]} 24. Bf4 {[%clk 0:02:57.8]} 24... Bxe5 {[%clk 0:01:36.2]} 25. Bxe5
{[%clk 0:02:54.2]} 25... Qh5 {[%clk 0:01:30.6]} 26. Qb2 {[%clk 0:02:51.4]} 26...
b6 {[%clk 0:00:56.6]} 27. Rf3 {[%clk 0:02:50.9]} 27... Rxf5 {[%clk 0:00:43.2]}
28. Qb5 {[%clk 0:02:15.5]} 28... Rd8 {[%clk 0:00:34.6]} 29. Ref1 {[%clk
0:01:17]} 29... Rxf3 {[%clk 0:00:34.8]} 30. Rxf3 {[%clk 0:01:18.9]} 30... Qe8
{[%clk 0:00:35.4]} 31. Qb2 {[%clk 0:01:15.8]} 31... Qe7 {[%clk 0:00:33.7]} 32.
Rf4 {[%clk 0:01:14.4]} 32... Rf8 {[%clk 0:00:33.9]} 33. Rg4 {[%clk 0:01:12.6]}
33... Rf7 {[%clk 0:00:31.8]} 34. a4 {[%clk 0:01:01.7]} 34... h6 {[%clk
0:00:32.4]} 35. a5 {[%clk 0:00:52.8]} 35... bxa5 {[%clk 0:00:31.8]} 36. Qb5
{[%clk 0:00:53.7]} 36... Qe6 {[%clk 0:00:29.5]} 37. Qxa5 {[%clk 0:00:48.7]}
37... Kh7 {[%clk 0:00:30.6]} 38. Kh2 {[%clk 0:00:37.5]} 38... h5 {[%clk
0:00:24.5]} 39. Rh4 {[%clk 0:00:37.6]} 39... Kh6 {[%clk 0:00:21.6]} 40. Qd8
{[%clk 0:00:36.5]} 40... g5 {[%clk 0:00:20.3]} 41. Qh8+ {[%clk 0:00:35.5]} 41...
Rh7 {[%clk 0:00:21.4]} 42. Rxh5+ {[%clk 0:00:36.9]} 1-0

[Event "*** Titled Tuesday Blitz"]
[Site "Chess.com"]
[Date "2019.07.02"]
[Round "3"]
[White "Daniela_Movileanu"]
[Black "MFBerna"]
[Result "0-1"]
[WhiteElo "2486"]
[BlackElo "2415"]
[TimeControl "180+2"]
[EndTime "13:39:57 PDT"]
[Termination "MFBerna won by resignation"]

1. c4 {[%clk 0:03:01.9]} 1... c6 {[%clk 0:03:00]} 2. g3 {[%clk 0:03:01]} 2... d5
{[%clk 0:03:01.2]} 3. Bg2 {[%clk 0:03:02.3]} 3... e6 {[%clk 0:03:01.6]} 4. Nf3
{[%clk 0:03:03.2]} 4... Nf6 {[%clk 0:03:03]} 5. O-O {[%clk 0:03:01.2]} 5... Be7
{[%clk 0:03:04.3]} 6. d3 {[%clk 0:03:02.2]} 6... O-O {[%clk 0:03:05.3]} 7. Nc3
{[%clk 0:03:00.3]} 7... c5 {[%clk 0:03:06]} 8. cxd5 {[%clk 0:02:59.4]} 8... exd5
{[%clk 0:03:06.1]} 9. Bg5 {[%clk 0:02:58]} 9... h6 {[%clk 0:03:02.3]} 10. Bf4
{[%clk 0:02:52.3]} 10... Nc6 {[%clk 0:03:01.6]} 11. Ne5 {[%clk 0:02:48.8]} 11...
Be6 {[%clk 0:02:53.8]} 12. a3 {[%clk 0:02:39.8]} 12... Rc8 {[%clk 0:02:49.7]}
13. Rc1 {[%clk 0:02:39.5]} 13... Nd4 {[%clk 0:02:33.6]} 14. Qa4 {[%clk
0:02:03.7]} 14... b5 {[%clk 0:02:13.6]} 15. Qd1 {[%clk 0:01:45.4]} 15... Qb6
{[%clk 0:02:08.2]} 16. e3 {[%clk 0:01:43]} 16... Nf5 {[%clk 0:02:08]} 17. h4
{[%clk 0:01:38.3]} 17... Rfd8 {[%clk 0:01:58.3]} 18. Qd2 {[%clk 0:01:20.7]}
18... d4 {[%clk 0:01:52.7]} 19. Ne4 {[%clk 0:01:12.1]} 19... dxe3 {[%clk
0:01:50.2]} 20. fxe3 {[%clk 0:01:05.8]} 20... c4 {[%clk 0:01:40.3]} 21. d4
{[%clk 0:00:54.7]} 21... Nxe4 {[%clk 0:01:09]} 22. Bxe4 {[%clk 0:00:54.2]} 22...
Nxd4 {[%clk 0:00:56.2]} 23. exd4 {[%clk 0:00:39.4]} 23... Rxd4 {[%clk
0:00:58.1]} 24. Qe3 {[%clk 0:00:38.6]} 24... Rxe4 {[%clk 0:00:46.7]} 25. Qxb6
{[%clk 0:00:34]} 25... axb6 {[%clk 0:00:48.6]} 26. Nf3 {[%clk 0:00:27.9]} 26...
Bf6 {[%clk 0:00:46.6]} 27. Rc2 {[%clk 0:00:26.3]} 27... Bf5 {[%clk 0:00:46.7]}
28. Rd2 {[%clk 0:00:26.1]} 28... c3 {[%clk 0:00:37.9]} 29. bxc3 {[%clk
0:00:26.2]} 29... Rxc3 {[%clk 0:00:39.4]} 30. Rd6 {[%clk 0:00:21.7]} 30... Bh3
{[%clk 0:00:34.8]} 31. Rf2 {[%clk 0:00:21]} 31... Rxa3 {[%clk 0:00:27.6]} 32.
Nd2 {[%clk 0:00:21.7]} 32... Re1+ {[%clk 0:00:20.9]} 33. Kh2 {[%clk 0:00:21.6]}
33... Bg4 {[%clk 0:00:21.2]} 34. Ne4 {[%clk 0:00:19.7]} 34... Rxe4 {[%clk
0:00:17.9]} 35. Rfd2 {[%clk 0:00:16.2]} 35... Re2+ {[%clk 0:00:14.6]} 36. Rxe2
{[%clk 0:00:17.4]} 36... Bxe2 {[%clk 0:00:16.5]} 37. Rxb6 {[%clk 0:00:18.6]}
37... Bc4 {[%clk 0:00:15]} 38. Bd6 {[%clk 0:00:19.5]} 38... Ra2+ {[%clk
0:00:15.7]} 39. Kg1 {[%clk 0:00:20.9]} 39... Bd4+ {[%clk 0:00:16.2]} 0-1